bitfinex/quotes_SOLUSD_20230103
["timestamp","ask_amount","ask_price","bid_price","bid_amount"]
[1672731600417,63.21,11.884,11.876,20.0]
[1672731600625,23.0406,11.885,11.876,20.0]
[1672731603382,335.0406,11.885,11.876,20.0]
[1672731604102,23.0406,11.885,11.876,20.0]
[1672731606092,114.5038,11.886,11.876,20.0]
[1672731606306,114.5038,11.886,11.876,69.42258912]
[1672731607058,114.5038,11.886,11.876,49.42258912]
[1672731607266,114.5038,11.886,11.877,20.0]
[1672731607668,114.5038,11.886,11.877,69.42258912]
[1672731609357,114.5038,11.886,11.877,20.0]
[1672731611155,426.5038,11.886,11.877,20.0]
[1672731611462,426.5038,11.886,11.877,75.85932246]
[1672731612295,114.5038,11.886,11.877,75.85932246]
[1672731617571,63.16,11.893,11.877,128.04908782]
[1672731617781,117.215,11.898,11.88,12.91]
[1672731617990,54.085,11.898,11.88,12.91]
[1672731618196,54.085,11.898,11.881,134.05539839]
[1672731618628,141.6774,11.898,11.882,161.74349839]
[1672731618945,141.6774,11.898,11.883,141.52354394]
[1672731619352,141.6774,11.898,11.884,121.52354394]
[1672731619564,141.6774,11.898,11.885,20.0]
[1672731619783,19.4007012,11.899,11.885,141.52354394]
[1672731620116,19.4007012,11.899,11.886,121.52354394]
[1672731620300,19.4007012,11.899,11.887,20.0]
[1672731620519,19.4007012,11.899,11.887,78.93416618]
[1672731620717,19.4007012,11.899,11.888,58.93416618]
[1672731620924,19.4007012,11.899,11.889,20.0]
[1672731621151,19.4007012,11.899,11.888,58.93416618]
[1672731622542,19.4007012,11.899,11.889,20.0]
[1672731623975,82.5307012,11.899,11.885,45.2192]
[1672731624296,30.0,11.897,11.882,58.93416618]
[1672731624622,30.0,11.897,11.886,58.93416618]
[1672731624817,30.0,11.897,11.887,20.0]
[1672731625465,30.0,11.897,11.841,696.05590432]
[1672731625466,63.14,11.896,11.873,572.00174156]
[1672731625678,245.2826,11.896,11.877,48.5965]
[1672731625892,157.9879,11.895,11.877,48.5965]
[1672731626087,63.15,11.894,11.877,48.5965]
[1672731626307,157.9879,11.893,11.877,48.5965]
[1672731626500,63.13,11.898,11.88,12.91]
[1672731626714,175.0608,11.898,11.881,30.0]
[1672731626924,111.9308,11.898,11.881,143.69961113]
[1672731627134,111.9308,11.898,11.882,113.69961113]
[1672731627346,111.9308,11.897,11.882,113.69961113]
[1672731627669,111.9308,11.897,11.883,133.69961113]
[1672731628076,111.9308,11.897,11.884,55.27023337]
[1672731628288,111.9308,11.897,11.885,20.0]
[1672731632713,9.76263803,11.896,11.885,20.0]
[1672731633873,128.08443803,11.896,11.885,20.0]
[1672731635451,128.08443803,11.896,11.885,55.27023337]
[1672731635663,128.08443803,11.896,11.886,20.0]
[1672731636698,128.08443803,11.896,11.885,20.0]
[1672731638281,128.08443803,11.896,11.885,75.27023337]
[1672731640717,151.65893803,11.896,11.885,75.27023337]
[1672731645975,23.177,11.895,11.886,30.0]
[1672731646281,23.177,11.895,11.887,75.89198004]
[1672731646496,32.93095937,11.895,11.887,134.3213578]
[1672731646704,32.93095937,11.895,11.888,55.89198004]
[1672731647232,32.93095937,11.895,11.889,20.0]
[1672731647635,32.93095937,11.895,11.889,75.89198004]
[1672731648994,32.93095937,11.895,11.889,134.3213578]
[1672731649640,32.93095937,11.895,11.889,75.89198004]
[1672731650908,32.93095937,11.895,11.889,142.60290208]
[1672731654264,19.4007012,11.899,11.89,30.0]
[1672731654459,9.5933626,11.894,11.89,42.87]
[1672731654673,19.4007012,11.899,11.891,122.60290208]
[1672731655090,19.4007012,11.899,11.892,142.60290208]
[1672731655542,19.4007012,11.899,11.893,114.3213578]
[1672731655864,19.4007012,11.899,11.894,75.89198004]
[1672731656172,19.4007012,11.899,11.895,55.89198004]
[1672731656385,19.4007012,11.899,11.896,20.0]
[1672731656795,19.4007012,11.899,11.896,75.89198004]
[1672731660806,19.4007012,11.899,11.896,134.3213578]
[1672731662781,19.4007012,11.899,11.896,142.60290208]
[1672731663840,19.4007012,11.899,11.896,134.3213578]
[1672731664555,19.4007012,11.899,11.896,75.89198004]
[1672731664771,19.4007012,11.899,11.897,8.28154428]
[1672731664980,19.4007012,11.899,11.898,20.0]
[1672731665823,19.4007012,11.899,11.898,75.89198004]
[1672731669818,19.4007012,11.899,11.898,84.17352432]
[1672731670144,19.4007012,11.899,11.898,142.60290208]
[1672731673278,63.05,11.913,11.898,142.60290208]
[1672731673510,23.9541,11.912,11.903,30.0]
[1672731673708,30.49,11.929,11.903,30.0]
[1672731673918,70.6487,11.928,11.904,529.01432573]
[1672731674127,62.98,11.927,11.905,186.33962014]
[1672731674350,62.98,11.927,11.905,367.74988678]
[1672731674560,70.6487,11.926,11.907,177.00950675]
[1672731674880,70.6487,11.926,11.909,30.0]
[1672731675067,70.6487,11.926,11.91,20.0]
[1672731675277,70.6487,11.926,11.91,209.96916402]
[1672731675496,147.2884436,11.926,11.911,189.96916402]
[1672731675710,147.2884436,11.926,11.912,20.0]
[1672731675908,147.2884436,11.926,11.912,91.00772648]
[1672731676114,147.2884436,11.926,11.913,71.00772648]
[1672731676344,147.2884436,11.926,11.914,20.0]
[1672731676558,62.99,11.925,11.914,20.0]
[1672731677292,62.99,11.925,11.911,8.28154428]
[1672731677510,12.85,11.92,11.907,1.83398792]
[1672731677937,12.85,11.92,11.907,8.28154428]
[1672731678120,63.02,11.919,11.906,2.826082]
[1672731678332,63.02,11.919,11.905,8.28154428]
[1672731678538,112.7297,11.918,11.905,8.28154428]
[1672731679807,112.7297,11.918,11.902,47.6516]
[1672731680127,112.7297,11.918,11.903,20.0]
[1672731680128,202.5206,11.917,11.903,20.0]
[1672731680319,30.0,11.916,11.903,20.0]
[1672731680527,63.04,11.915,11.893,30.0]
[1672731680754,30.0,11.914,11.893,30.0]
[1672731680971,240.9538,11.913,11.893,30.0]
[1672731681172,240.9538,11.913,11.894,8.28154428]
[1672731681503,240.9538,11.913,11.895,33.87]
[1672731681712,109.4906,11.912,11.895,33.87]
[1672731681922,63.06,11.911,11.896,8.28154428]
[1672731682152,63.06,11.911,11.897,20.0]
[1672731682342,172.5506,11.911,11.897,20.0]
[1672731682559,172.5506,11.911,11.898,8.28154428]
[1672731683294,109.4906,11.911,11.898,8.28154428]
[1672731684025,109.4906,11.911,11.9,30.0]
[1672731684235,109.4906,11.911,11.901,53.85]
[1672731684452,109.4906,11.911,11.901,42.13154428]
[1672731684646,109.4906,11.911,11.902,28.28154428]
[1672731685067,109.4906,11.911,11.903,8.28154428]
[1672731685281,68.4132,11.913,11.904,20.0]
[1672731685708,68.4132,11.913,11.904,28.28154428]
[1672731686233,22.9856,11.913,11.904,28.28154428]
[1672731687265,62.99,11.924,11.914,8.28154428]
[1672731687479,92.97,11.928,11.906,5.11544056]
[1672731687686,92.97,11.928,11.912,58.52691621]
[1672731688106,92.97,11.928,11.913,8.28154428]
[1672731689058,92.97,11.928,11.914,20.0]
[1672731689478,92.97,11.928,11.915,8.28154428]
[1672731689697,92.97,11.928,11.916,20.0]
[1672731690132,404.97,11.928,11.917,8.28154428]
[1672731690328,374.97,11.928,11.917,8.28154428]
[1672731690526,312.0,11.928,11.918,20.0]
[1672731690962,312.0,11.928,11.919,8.28154428]
[1672731691158,63.46,11.929,11.92,20.0]
[1672731691597,0.49,11.929,11.92,20.0]
[1672731692107,63.46,11.929,11.92,20.0]
[1672731694943,63.46,11.929,11.919,20.0]
[1672731695489,93.46,11.929,11.919,20.0]
[1672731695697,93.46,11.929,11.916,28.28154428]
[1672731695894,111.7524,11.928,11.916,28.28154428]
[1672731696104,111.7524,11.928,11.917,8.28154428]
[1672731696436,111.7524,11.928,11.918,20.0]
[1672731696853,111.7524,11.928,11.919,8.28154428]
[1672731697063,111.7524,11.928,11.92,20.0]
[1672731697907,111.7524,11.928,11.917,20.0]
[1672731698434,111.7524,11.928,11.918,8.28154428]
[1672731698749,111.7524,11.928,11.919,20.0]
[1672731699147,111.7524,11.928,11.92,8.28154428]
[1672731699584,111.7524,11.928,11.921,20.0]
[1672731699992,111.7524,11.928,11.921,28.28154428]
[1672731701378,111.7524,11.928,11.921,20.0]
[1672731701580,111.7524,11.928,11.918,8.28154428]
[1672731701789,111.7524,11.928,11.919,20.0]
[1672731702533,111.7524,11.928,11.919,86.80846049]
[1672731702724,0.49,11.929,11.919,146.60280894]
[1672731706830,68.35819932,11.926,11.92,12.81]
[1672731707039,10.87839162,11.926,11.922,30.0]
[1672731707256,10.87839162,11.926,11.923,53.79]
[1672731707475,10.87839162,11.926,11.923,152.11126466]
[1672731707681,10.87839162,11.926,11.924,86.80846049]
[1672731708113,2.59684734,11.926,11.925,66.80846049]
[1672731708315,2.59684734,11.926,11.925,146.60280894]
[1672731710294,0.49,11.929,11.926,30.0]
[1672731710505,0.49,11.929,11.927,20.0]
[1672731710936,0.49,11.929,11.928,66.34102098]
[1672731711153,0.49,11.929,11.928,86.34102098]
[1672731711779,0.49,11.929,11.928,78.52691621]
[1672731712313,0.49,11.929,11.928,86.26773337]
[1672731712840,0.49,11.929,11.928,78.52691621]
[1672731713026,0.49,11.929,11.928,20.0]
[1672731713232,0.49,11.929,11.924,7.74081716]
[1672731713463,0.49,11.929,11.921,33.8]
[1672731713673,0.49,11.929,11.922,20.0]
[1672731713882,0.49,11.929,11.921,41.54081716]
[1672731714206,0.49,11.929,11.922,7.74081716]
[1672731716194,0.49,11.929,11.923,20.0]
[1672731716726,0.49,11.929,11.923,27.74081716]
[1672731716938,0.49,11.929,11.923,77.88360266]
[1672731717354,0.49,11.929,11.923,137.67795111]
[1672731718708,0.49,11.929,11.923,79.79434845]
[1672731720406,0.49,11.929,11.923,20.0]
[1672731720730,0.49,11.929,11.922,20.0]
[1672731721888,0.49,11.929,11.921,33.8]
[1672731723757,0.49,11.929,11.921,41.54081716]
[1672731724827,0.49,11.929,11.922,20.0]
[1672731731970,0.49,11.929,11.923,7.74081716]
[1672731732163,0.49,11.929,11.924,20.0]
[1672731733629,0.49,11.929,11.923,20.0]
[1672731734787,0.49,11.929,11.923,70.1427855]
[1672731734998,0.49,11.929,11.923,77.88360266]
[1672731736574,0.49,11.929,11.923,131.09128444]
[1672731736998,22.5233,11.947,11.933,0.49]
[1672731737226,118.2442,11.944,11.931,0.49]
[1672731737538,118.2442,11.944,11.934,64.00480077]
[1672731737730,118.2442,11.944,11.935,20.0]
[1672731738064,117.2442,11.944,11.935,20.0]
[1672731738273,117.2442,11.944,11.933,20.0]
[1672731739416,117.2442,11.944,11.931,64.00480077]
[1672731739631,30.0,11.944,11.931,64.00480077]
[1672731740268,30.0,11.944,11.932,7.74081716]
[1672731740888,30.0,11.944,11.932,71.74561793]
[1672731741326,30.0,11.944,11.933,27.74081716]
[1672731741749,30.0,11.944,11.934,7.74081716]
[1672731742048,46.2914,11.945,11.935,20.0]
[1672731742471,46.2914,11.945,11.936,64.00480077]
[1672731742669,46.2914,11.945,11.937,20.0]
[1672731742878,23.7447,11.948,11.937,20.0]
[1672731743103,137.5334,11.948,11.937,27.74081716]
[1672731743309,137.0334,11.948,11.937,20.0]
[1672731743521,30.0,11.947,11.933,20.0]
[1672731743735,62.88,11.946,11.933,68.758]
[1672731743943,30.0,11.945,11.933,68.758]
[1672731744155,142.9391,11.945,11.933,68.758]
[1672731745308,12.78,11.94,11.925,149.87613765]
[1672731745549,12.78,11.94,11.924,149.10100619]
[1672731745718,112.9391,11.939,11.926,7.74081716]
[1672731746688,112.9391,11.938,11.926,7.74081716]
[1672731749399,112.9391,11.938,11.927,20.0]
[1672731749606,404.9,11.941,11.927,75.51146743]
[1672731749818,342.0,11.941,11.928,63.25228459]
[1672731750032,30.0,11.941,11.929,20.0]
[1672731750247,30.0,11.941,11.929,83.25228459]
[1672731750458,30.0,11.941,11.93,63.25228459]
[1672731750670,30.0,11.941,11.931,20.0]
[1672731751102,12.79,11.94,11.931,20.0]
[1672731751307,12.79,11.94,11.926,27.74081716]
[1672731751505,167.9593,11.939,11.926,130.37863304]
[1672731751839,167.9593,11.939,11.927,67.12634845]
[1672731752053,119.772,11.938,11.927,67.12634845]
[1672731752469,119.772,11.938,11.927,122.63781588]
[1672731753099,119.772,11.938,11.927,130.37863304]
[1672731753828,30.0,11.941,11.927,130.37863304]
[1672731754027,23.4087,11.943,11.928,20.0]
[1672731754238,23.4087,11.943,11.928,66.1465]
[1672731754455,23.4087,11.943,11.929,163.48129971]
[1672731754685,23.4087,11.943,11.93,78.9265]
[1672731754873,23.4087,11.943,11.93,212.40779971]
[1672731755085,23.4087,11.943,11.931,133.48129971]
[1672731755504,23.4087,11.943,11.932,145.74048255]
[1672731755932,23.4087,11.943,11.932,87.12634845]
[1672731756145,23.4087,11.943,11.933,125.74048255]
[1672731756361,23.4087,11.943,11.934,20.0]
[1672731756553,153.5013,11.944,11.934,20.0]
[1672731757184,12.69,11.94,11.934,20.0]
[1672731757404,12.69,11.94,11.929,58.6141341]
[1672731757605,113.8273,11.939,11.93,20.0]
[1672731758035,113.8273,11.939,11.93,78.6141341]
[1672731758441,113.8273,11.939,11.93,58.6141341]
[1672731759083,113.8273,11.939,11.926,7.74081716]
[1672731759292,113.8273,11.938,11.926,7.74081716]
[1672731759499,113.8273,11.938,11.926,58.6141341]
[1672731759932,113.8273,11.938,11.926,66.35495126]
[1672731760141,113.8273,11.938,11.926,132.61463304]
[1672731760761,12.69,11.94,11.926,132.61463304]
[1672731760965,30.0,11.943,11.926,132.61463304]
[1672731761178,30.0,11.943,11.927,68.7543]
[1672731761394,92.89,11.943,11.927,68.7543]
[1672731761611,92.89,11.943,11.927,107.3684341]
[1672731761823,30.0,11.941,11.927,107.3684341]
[1672731762036,117.2201,11.94,11.927,107.3684341]
[1672731762757,115.7673,11.939,11.927,107.3684341]
[1672731763397,115.7673,11.939,11.927,181.36893304]
[1672731763620,115.7673,11.939,11.927,173.62811588]
[1672731764138,115.7673,11.939,11.927,107.3684341]
[1672731764355,115.7673,11.939,11.927,48.7543]
[1672731764547,115.7673,11.939,11.928,7.74081716]
[1672731764981,115.7673,11.939,11.929,58.6141341]
[1672731765282,115.7673,11.939,11.93,27.74081716]
[1672731765723,115.7673,11.939,11.93,78.6141341]
[1672731767090,115.7673,11.939,11.93,144.87381588]
[1672731767486,115.7673,11.939,11.931,7.74081716]
[1672731767696,115.7673,11.939,11.932,20.0]
[1672731767905,115.7673,11.939,11.93,78.6141341]
[1672731770011,30.0,11.938,11.93,20.0]
[1672731770225,92.92,11.938,11.93,20.0]
[1672731770424,92.92,11.938,11.928,20.0]
[1672731774957,404.92,11.938,11.928,20.0]
[1672731775471,342.0,11.938,11.928,20.0]
[1672731775892,30.0,11.938,11.928,20.0]
[1672731778832,342.0,11.938,11.928,20.0]
[1672731780026,30.0,11.936,11.928,20.0]
[1672731782865,342.0,11.936,11.928,20.0]
[1672731783819,30.0,11.936,11.928,20.0]
[1672731786747,342.0,11.936,11.928,20.0]
[1672731788418,30.0,11.936,11.928,20.0]
[1672731788958,30.0,11.934,11.928,20.0]
[1672731790429,30.0,11.934,11.928,17.5]
[1672731791178,30.0,11.934,11.927,48.7543]
[1672731791360,62.95,11.933,11.912,30.0]
[1672731791578,12.77,11.93,11.915,163.9743]
[1672731791787,12.77,11.93,11.916,54.05981716]
[1672731792308,12.77,11.93,11.917,22.8446]
[1672731792954,324.77,11.93,11.917,22.8446]
[1672731793998,30.0,11.929,11.917,22.8446]
[1672731794214,92.97,11.929,11.917,22.8446]
[1672731795163,92.97,11.929,11.922,20.0]
[1672731795783,30.0,11.929,11.922,20.0]
[1672731800844,342.0,11.929,11.922,20.0]
[1672731802630,404.97,11.929,11.922,20.0]
[1672731804124,403.97,11.929,11.922,20.0]
[1672731804646,341.0,11.929,11.922,20.0]
[1672731807480,312.0,11.929,11.922,20.0]
[1672731807799,312.0,11.929,11.922,17.5]
[1672731811802,30.0,11.928,11.922,17.5]
[1672731812198,30.0,11.928,11.92,20.0]
[1672731812632,30.0,11.928,11.91,12.78]
[1672731812845,30.0,11.926,11.911,20.0]
[1672731813057,49.4313,11.925,11.917,7.74081716]
[1672731813275,49.4313,11.925,11.918,20.0]
[1672731814100,49.4313,11.925,11.914,20.0]
[1672731814942,49.4313,11.925,11.914,44.7035]
[1672731815794,361.4313,11.925,11.914,44.7035]
[1672731816217,312.0,11.925,11.914,44.7035]
[1672731816530,312.0,11.925,11.915,50.87916663]
[1672731816746,312.0,11.925,11.916,20.0]
[1672731817144,312.0,11.925,11.916,70.87916663]
[1672731818420,141.3874,11.927,11.916,70.87916663]
[1672731818632,141.3874,11.927,11.916,95.37026663]
[1672731819245,141.3874,11.927,11.916,129.17026663]
[1672731819772,141.3874,11.927,11.916,78.2911]
[1672731820411,30.0,11.926,11.916,78.2911]
[1672731821568,342.0,11.926,11.916,78.2911]
[1672731828186,312.0,11.926,11.916,78.2911]
[1672731830831,312.0,11.926,11.916,86.26971361]
[1672731831041,312.0,11.926,11.916,78.2911]
[1672731844077,118.7318,11.927,11.916,78.2911]
[1672731844078,30.0,11.925,11.916,78.2911]
[1672731847126,342.0,11.925,11.916,78.2911]
[1672731850700,312.0,11.925,11.916,86.26971361]
[1672731851009,312.0,11.925,11.916,137.14888024]
[1672731851622,312.0,11.925,11.916,129.17026663]
[1672731852359,312.0,11.925,11.916,137.14888024]
[1672731852570,312.0,11.925,11.916,129.17026663]
[1672731853934,312.0,11.925,11.916,137.14888024]
[1672731855199,312.0,11.925,11.916,129.17026663]
[1672731859626,143.3002,11.927,11.916,78.2911]
[1672731859940,118.7318,11.927,11.917,48.8372851]
[1672731860133,118.7318,11.927,11.918,20.0]
[1672731861966,30.0,11.926,11.91,12.74]
[1672731862133,12.82,11.92,11.907,46.1825]
[1672731862337,63.02,11.919,11.907,46.1825]
[1672731862777,312.0,11.916,11.907,46.1825]
[1672731863198,312.0,11.916,11.908,20.0]
[1672731875305,30.0,11.915,11.908,20.0]
[1672731881276,142.7204,11.917,11.908,20.0]
[1672731883282,312.0,11.915,11.908,20.0]
[1672731884760,312.0,11.915,11.908,27.97861361]
[1672731885485,312.0,11.915,11.908,20.0]
[1672731900004,205.7504,11.917,11.908,20.0]
[1672731901788,142.7204,11.917,11.908,20.0]
[1672731901984,205.7504,11.917,11.908,20.0]
[1672731902845,312.0,11.915,11.908,20.0]
[1672731903263,142.7204,11.917,11.907,46.1825]
[1672731903584,142.7204,11.917,11.895,63.14]
[1672731903585,30.0,11.915,11.895,63.14]
[1672731903788,63.05,11.914,11.898,23.6121]
[1672731903990,230.1204,11.914,11.899,83.12]
[1672731904202,230.1204,11.914,11.899,63.12]
[1672731904526,230.1204,11.914,11.898,31.59071361]
[1672731904717,167.0704,11.913,11.898,23.6121]
[1672731904926,63.06,11.912,11.898,23.6121]
[1672731905263,141.0744,11.911,11.898,31.59071361]
[1672731905466,141.0744,11.911,11.899,83.12]
[1672731905684,141.0744,11.91,11.899,63.12]
[1672731905894,24.2472,11.917,11.899,63.12]
[1672731905895,63.04,11.916,11.899,71.09861361]
[1672731906093,22.7363,11.916,11.901,30.0]
[1672731906303,334.7363,11.916,11.901,30.0]
[1672731906632,334.7363,11.916,11.902,43.43064067]
[1672731906836,334.7363,11.916,11.902,91.36904067]
[1672731907054,334.7363,11.916,11.903,72.60864067]
[1672731907259,453.0744,11.916,11.904,24.8934]
[1672731907450,141.0744,11.916,11.905,20.0]
[1672731907661,141.0744,11.916,11.905,97.50204067]
[1672731907871,141.0744,11.916,11.906,52.60864067]
[1672731908081,141.0744,11.916,11.907,20.0]
[1672731908309,141.0744,11.916,11.907,70.4713604]
[1672731910206,141.0744,11.916,11.907,20.0]
[1672731910395,453.0744,11.916,11.907,20.0]
[1672731913462,141.0744,11.916,11.907,20.0]
[1672731913780,141.0744,11.916,11.907,71.85874845]
[1672731916519,453.0744,11.916,11.907,71.85874845]
[1672731917450,141.0744,11.916,11.907,80.19387532]
[1672731917658,141.0744,11.916,11.907,130.66523572]
[1672731923763,141.0744,11.916,11.907,122.33010885]
[1672731925550,92.97,11.928,11.91,12.75]
[1672731925757,134.6373,11.926,11.911,50.0]
[1672731925956,134.6373,11.926,11.911,130.66523572]
[1672731926287,134.6373,11.926,11.912,110.66523572]
[1672731926483,134.6373,11.926,11.913,20.0]
[1672731926801,134.6373,11.926,11.914,22.6309]
[1672731927017,134.6373,11.926,11.915,20.0]
[1672731927425,134.6373,11.926,11.915,80.19387532]
[1672731927639,134.6373,11.926,11.916,51.85874845]
[1672731927853,134.6373,11.926,11.917,20.0]
[1672731928072,134.6373,11.926,11.917,28.33512687]
[1672731928262,134.6373,11.926,11.918,60.19387532]
[1672731928467,134.6373,11.926,11.919,20.0]
[1672731929119,134.6373,11.926,11.917,20.0]
[1672731930800,134.6373,11.926,11.918,8.33512687]
[1672731931017,134.6373,11.926,11.919,20.0]
[1672731931545,134.6373,11.926,11.919,28.33512687]
[1672731931728,109.6738,11.926,11.919,28.33512687]
[1672731933963,109.6738,11.926,11.919,80.19387532]
[1672731934154,109.6738,11.926,11.919,71.85874845]
[1672731934356,84.6738,11.926,11.919,71.85874845]
[1672731934572,62.92,11.937,11.919,71.85874845]
[1672731934573,62.92,11.937,11.927,8.33512687]
[1672731934798,22.6269,11.937,11.92,261.23381316]
[1672731935017,47.691,11.936,11.928,105.22088623]
[1672731935220,62.91,11.939,11.928,105.22088623]
[1672731935418,312.0,11.936,11.928,105.22088623]
[1672731936147,312.0,11.936,11.929,20.0]
[1672731937132,312.0,11.936,11.926,20.0]
[1672731937643,312.0,11.936,11.926,97.71803439]
[1672731938566,312.0,11.936,11.927,8.33512687]
[1672731938779,312.0,11.936,11.928,20.0]
[1672731938990,312.0,11.936,11.928,94.71527001]
[1672731939213,22.5591,11.938,11.929,83.05039688]
[1672731939531,22.5591,11.938,11.93,103.05039688]
[1672731939927,22.5591,11.938,11.931,145.88105049]
[1672731940150,22.5591,11.938,11.932,20.0]
[1672731940354,22.5591,11.938,11.932,97.71803439]
[1672731940990,137.3788,11.94,11.932,97.71803439]
[1672731943941,137.3788,11.94,11.932,20.0]
[1672731944150,137.3788,11.94,11.931,20.0]
[1672731944879,137.3788,11.94,11.931,8.33512687]
[1672731945095,137.3788,11.94,11.932,20.0]
[1672731945305,137.3788,11.94,11.929,20.0]
[1672731945628,160.0964,11.94,11.929,20.0]
[1672731946044,160.0964,11.94,11.93,8.33512687]
[1672731946259,160.0964,11.94,11.931,20.0]
[1672731946787,160.0964,11.94,11.932,8.33512687]
[1672731947005,160.0964,11.94,11.933,20.0]
[1672731947821,62.88,11.945,11.934,68.1630161]
[1672731948053,160.9291,11.946,11.935,20.0]
[1672731948240,160.9291,11.946,11.935,118.31173439]
[1672731948455,160.9291,11.946,11.936,142.24105049]
[1672731948667,160.9291,11.946,11.937,20.0]
[1672731949112,160.9291,11.946,11.937,162.24105049]
[1672731949628,135.9291,11.946,11.937,170.57617736]
[1672731949835,135.9291,11.946,11.938,62.92]
[1672731950240,87.6588,11.946,11.939,150.57617736]
[1672731950449,87.6588,11.946,11.94,62.91]
[1672731950655,62.83,11.955,11.94,62.91]
[1672731950656,62.83,11.955,11.94,213.48617736]
[1672731950973,112.2078,11.955,11.941,150.57617736]
[1672731951179,112.2078,11.955,11.942,20.0]
[1672731951180,49.3778,11.954,11.942,20.0]
[1672731951392,49.3778,11.954,11.942,162.24105049]
[1672731951825,49.3778,11.954,11.943,142.24105049]
[1672731952242,49.3778,11.954,11.944,88.1630161]
[1672731952985,49.3778,11.954,11.944,20.0]
[1672731955836,49.3778,11.954,11.941,20.0]
[1672731956040,120.553812,11.953,11.941,20.0]
[1672731956247,120.553812,11.953,11.942,68.1630161]
[1672731956455,120.553812,11.953,11.943,20.0]
[1672731956683,120.553812,11.953,11.943,91.56470106]
[1672731956869,120.553812,11.953,11.944,139.72771716]
[1672731957084,120.553812,11.953,11.945,20.0]
[1672731957287,30.0,11.952,11.945,139.72771716]
[1672731957619,30.0,11.952,11.935,352.41853825]
[1672731957811,258.1477,11.952,11.939,20.0]
[1672731958026,195.2977,11.952,11.937,115.18658537]
[1672731958233,195.2977,11.952,11.937,123.52171224]
[1672731958460,117.2586,11.951,11.938,93.60458537]
[1672731959079,165.2977,11.951,11.938,93.60458537]
[1672731959284,1.962612,11.953,11.938,101.93971224]
[1672731959511,1.962612,11.953,11.939,48.0755]
[1672731959709,1.962612,11.953,11.94,48.0755]
[1672731959919,1.962612,11.953,11.94,184.24241262]
[1672731960148,1.962612,11.953,11.941,156.16691262]
[1672731960357,1.962612,11.953,11.941,204.24241262]
[1672731960548,1.962612,11.953,11.942,136.16691262]
[1672731960758,1.962612,11.953,11.943,20.0]
[1672731961077,1.962612,11.953,11.943,156.51357929]
[1672731961282,1.962612,11.953,11.944,136.51357929]
[1672731961497,1.962612,11.953,11.945,20.0]
[1672731961698,1.962612,11.953,11.945,156.51357929]
[1672731961909,1.962612,11.953,11.946,136.51357929]
[1672731962118,1.962612,11.953,11.947,20.0]
[1672731962344,1.962612,11.953,11.947,156.51357929]
[1672731962539,1.962612,11.953,11.948,136.51357929]
[1672731962751,1.962612,11.953,11.949,20.0]
[1672731963072,1.962612,11.953,11.949,88.71478537]
[1672731963282,1.962612,11.953,11.95,68.71478537]
[1672731963612,1.962612,11.953,11.951,28.33512687]
[1672731964023,1.962612,11.953,11.951,20.0]
[1672731964231,1.962612,11.953,11.951,68.71478537]
[1672731964436,1.962612,11.953,11.952,20.0]
[1672731964875,1.962612,11.953,11.952,88.71478537]
[1672731965593,1.962612,11.953,11.952,20.0]
[1672731965816,1.962612,11.953,11.944,20.0]
[1672731966222,1.962612,11.953,11.944,79.46366705]
[1672731966436,1.962612,11.953,11.944,20.0]
[1672731967186,1.962612,11.953,11.941,59.60195451]